Cogmind - Beta 16.1 @@@ ROGUE MODE // 2026.05.02 @ 21:18:37 Player: IDRpheonix Result: Destroyed by G-47 Trooper with Particle Gun Performance ------------- Evolutions (3) 1500 Regions Visited (5) 1000 Robots Destroyed (57) 285 Value Destroyed (1827) 1827 Prototype IDs (1) 20 Alien Tech Used (0) 0 Bonus (0) 0 TOTAL SCORE: 4632 Bonus ------- None Cogmind --------- Core Integrity 0/700 Matter 285/300 Energy 100/100 System Corruption 6% Temperature Cool (9) Movement Core (1500) Ox29 Location -7/Lower Caves Parts ------- > --- POWER (1) -------- (None) > --- PROPULSION (4) --- (None) > --- UTILITY (5) ------ Huge Storage Unit Reactive Plating > --- WEAPON (3) ------- (None) > --- INVENTORY (25) --- Enhanced Nuclear Core Advanced Weight Redist. System Visual Processing Unit Improved Sensor Array Improved Terrain Scanner Improved Terrain Scanner Terrain Scan Processor Seismic Detector Improved Targeting Computer Improved Targeting Computer Launcher Guidance Computer Launcher Guidance Computer Launcher Guidance Computer Launcher Guidance Computer Recoil Stabilizer Microactuators Advanced ECM Suite Propulsion Shielding Hacking Suite Peak State ------------ > --- POWER ------------ Enhanced Nuclear Core > --- PROPULSION ------- Light Treads Light Treads Wheel Armored Wheel > --- UTILITY ---------- Improved Heat Sink Huge Storage Unit Terrain Scan Processor Energy Filter Improved Light Armor Plating > --- WEAPON ----------- Particle Cannon Particle Cannon Particle Cannon > --- INVENTORY -------- Nuclear Core Light Treads Light Treads Cryofiber Web Advanced Weight Redist. System Visual Processing Unit Sensor Array Improved Sensor Array Improved Terrain Scanner Improved Terrain Scanner Terrain Scan Processor Seismic Detector Improved Targeting Computer Improved Targeting Computer Recoil Stabilizer Microactuators Reaction Control System Propulsion Shielding Reactive Plating Reactive Plating Hacking Suite Particle Cannon Precision Assault Rifle Scythe [Rating: 35] Favorites ----------- Power Light Nuclear Core Engine Improved Ion Engine Power Core Light Nuclear Core Propulsion Light Treads Treads Light Treads Wheel Armored Wheel Utility Terrain Scan Processor Device Improved Heat Sink Storage Huge Storage Unit Processor Terrain Scan Processor Protection Improved Light Armor Plating Weapon Particle Cannon Energy Gun Heavy EM Pulse Gun Energy Cannon Particle Cannon Ballistic Gun Light Assault Rifle Ballistic Cannon Assault Cannon Slashing Weapon Scythe Build | -11 -10 -9 -8 -7 -7 ------- Run | Yrd Mat Mat Mat Fac Low Slots Evolved 6 | . . 2 2 2 . Power . | . . . . . . Propulsion 2 | . . . 1 1 . Utility 3 | . . 1 1 1 . Weapon 1 | . . 1 . . . Parts Attached 58 | 6 1 15 14 18 4 Power 10 | 1 . 1 3 4 1 Engine 2 | 1 . 1 . . . Core 8 | . . . 3 4 1 Reactor . | . . . . . . Propulsion 13 | 2 . 4 2 5 . Treads 4 | . . . . 4 . Leg . | . . . . . . Wheel 9 | 2 . 4 2 1 . Hover . | . . . . . . Flight . | . . . . . . Utility 20 | 1 1 4 5 7 2 Device 12 | . . 3 3 6 . Storage 3 | 1 1 . 1 . . Processor 1 | . . 1 . . . Hackware . | . . . . . . Protection 4 | . . . 1 1 2 Artifact . | . . . . . . Weapon 15 | 2 . 6 4 2 1 Energy Gun 4 | 1 . 3 . . . Energy Cannon 6 | . . 2 3 1 . Ballistic Gun 2 | 1 . 1 . . . Ballistic Cannon 2 | . . . 1 1 . Launcher . | . . . . . . Special Weapon . | . . . . . . Impact Weapon . | . . . . . . Slashing Weapon 1 | . . . . . 1 Piercing Weapon . | . . . . . . Special Melee Weapon . | . . . . . . Unidentified Prototypes 1 | . . . . 1 . Parts Lost 34 | . . 8 4 5 17 Power 5 | . . 1 1 1 2 Propulsion 11 | . . 2 1 3 5 Utility 8 | . . 2 . . 6 Weapon 10 | . . 3 2 1 4 Highest Loss Streak 16 | . . 3 2 1 16 To Critical Strikes 1 | . . . . . 1 Average Backups 17 | . 4 6 17 24 24 Power 1 | . . 1 1 1 1 Propulsion 1 | . . 1 1 2 . Utility 13 | . 1 2 12 19 20 Weapon 1 | . 1 1 1 1 . Tool/Special . | . . . . . . Unused Backups 18 | . 1 . 1 3 13 Power 1 | . 1 . . . . Propulsion . | . . . . . . Utility 15 | . . . . 2 13 Weapon 2 | . . . 1 1 . Tool/Special . | . . . . . . Average Slot Usage (%) 96 | . 98 96 97 95 92 Engine 4 | . 14 11 5 . . Core 4 | . . . 3 6 6 Treads 7 | . . . . 11 21 Wheel 18 | . 28 21 26 14 6 Device 16 | . . 8 17 21 20 Storage 9 | . 26 12 9 7 7 Processor 7 | . . 9 9 7 6 Energy Gun 5 | . 14 13 5 . . Energy Cannon 13 | . . 7 13 22 13 Ballistic Gun 3 | . 14 11 . . . Ballistic Cannon 3 | . . . 6 . 6 Peak Build Rating 35 | 6 8 17 27 35 35 Average Rating 23 | 4 7 14 22 30 32 On Entrance 15 | . 6 8 17 25 35 Avg Prop Armor Cover (%) 16 | . . . . 13 19 Naked Turns . | . . . . . . Heaviest Build 106 | 13 15 24 101 106 104 Greatest Support 80 | 32 32 32 38 80 80 Greatest Overweight (x) 33 | 1 . . 4 10 33 Average Overweight (x) 2 | . . . 1 4 10 Largest Inventory Capacity 25 | 8 8 8 25 25 25 Average Capacity 19 | 6 8 8 22 25 25 Most Carried 25 | 1 8 8 25 25 25 Average Carried 17 | . 4 6 17 24 24 Final Capacity 25 | 8 8 8 25 25 25 Final Carried 25 | 1 8 8 25 25 19 Class Distribution -------------------- 40% | Scavenger-Skirmisher 26% | Scavenger-Gunner 13% | Skirmisher 8% | Mutant 4% | Scavenger-Tank 3% | Scavenger-Mutant Dominant Class ---------------- Mutant | -10/Materials Skirmisher | -9/Materials Scavenger-Skirmisher | -8/Materials Scavenger-Skirmisher | -7/Factory Scavenger-Gunner | -7/Lower Caves Resources | -11 -10 -9 -8 -7 -7 ----------- Run | Yrd Mat Mat Mat Fac Low Matter Collected 1305 | 235 149 190 375 313 43 Remotely . | . . . . . . Salvage Created 2002 | . 129 399 711 717 46 Parts 119 | . 9 38 45 25 2 Haulers Intercepted . | . . . . . . Recyclers Shooed 2 | . 1 . 1 . . Parts Field Recycled . | . . . . . . Retrieved Matter . | . . . . . . Parts Self-Destructed 5 | . . . . . 5 Prevented 2 | . . . . . 2 Parts Restored . | . . . . . . Kills | -11 -10 -9 -8 -7 -7 ------- Run | Yrd Mat Mat Mat Fac Low Combat Hostiles Destroyed 53 | . 3 18 15 16 1 Guns 19 | . 3 15 1 . . Cannons 31 | . . 2 13 15 1 AOE 1 | . . 1 . . . Classes Destroyed 9 | . 1 2 2 3 1 Worker 1 | . . . . 1 . Mechanic 1 | . . . 1 . . Watcher 2 | . . . 2 . . Swarmer 20 | . . 13 3 4 . Grunt 24 | . 3 4 8 9 . Brawler 1 | . . . . . 1 Sentry 6 | . . 1 4 1 . Hunter 1 | . . . . 1 . Programmer 1 | . . . . 1 . Best Kill Streak 7 | . 1 7 4 4 1 Combat Bots Only 7 | . 1 7 3 4 1 Max Kills in Single Turn 2 | . 1 2 1 1 1 Gunslinging . | . . . . . . Exploded 1 | . . 1 . . . Melee . | . . . . . . Uniques/NPCs Destroyed . | . . . . . . Combat | -11 -10 -9 -8 -7 -7 -------- Run | Yrd Mat Mat Mat Fac Low Hostile Shots Fired 441 | . 17 97 64 104 159 Missed 127 | . 6 28 27 26 40 Hits 314 | . 11 69 37 78 119 Melee 5 | . . . . . 5 Projectile 309 | . 11 69 37 78 114 Critical Strikes 14 | . . 1 3 4 6 Damage Taken 4193 | . 137 705 543 1031 1777 Core 1038 | . 88 142 93 110 605 Absorbed by Shields . | . . . . . . Ignored by Resistances 14 | . . . . . 14 Core Remaining (%) 77 | 100 64 64 83 . . Volleys Fired 143 | . 14 42 43 37 7 Largest 3 | . 2 3 3 3 2 Hottest 204 | . 60 133 173 204 108 Shots Fired 387 | . 28 113 125 111 10 Gun 166 | . 28 100 38 . . Cannon 221 | . . 13 87 111 10 Launcher . | . . . . . . Special . | . . . . . . Kinetic 122 | . 14 57 41 3 7 Thermal 195 | . . 38 46 108 3 Explosive . | . . . . . . Electromagnetic 70 | . 14 18 38 . . Robot Hit Streak 17 | . 4 10 6 17 3 Robot Miss Streak 6 | . 6 5 5 3 1 Penetration Max . | . . . . . . Secondary Targets 2 | . . 2 . . . Max Gunslinging Chain 1 | . . 1 . . . Shots Hit Robots 222 | . 10 60 73 74 5 Core Hits 92 | . 7 25 28 30 2 Critical Kills 2 | . . . 1 1 . Critical Parts Destroyed . | . . . . . . Critical Strikes 7 | . . 2 4 1 . Burn 1 | . . 1 . . . Meltdown 2 | . . . 1 1 . Blast 2 | . . . 2 . . Corrupt 2 | . . 1 1 . . Melee Attacks . | . . . . . . Impact . | . . . . . . Slashing . | . . . . . . Piercing . | . . . . . . Sneak Attacks . | . . . . . . Combat Hostiles . | . . . . . . Follow-up Attacks . | . . . . . . Damage Inflicted 4233 | . 182 774 1547 1561 169 Guns 1087 | . 130 550 407 . . Cannons 3022 | . . 184 1108 1561 169 Explosions 124 | . 52 40 32 . . Melee . | . . . . . . Ramming . | . . . . . . Kinetic 1110 | . 51 290 593 50 126 Thermal 2527 | . 52 374 547 1511 43 Explosive . | . . . . . . Electromagnetic 596 | . 79 110 407 . . Impact . | . . . . . . Slashing . | . . . . . . Piercing . | . . . . . . Highest Corruption 6 | . . . . 1 6 Average Corruption 1 | . . . . 1 1 Corruption Purged . | . . . . . . Corruption Blocked . | . . . . . . Effects 15 | . . . . 6 9 Message Errors 3 | . . . . 3 . Matter Fused 6 | . . . . 3 3 Energy Discharges 1 | . . . . . 1 Data Loss (minor) 1 | . . . . . 1 Data Loss (major) 1 | . . . . . 1 Misfires 1 | . . . . . 1 Alerts 1 | . . . . . 1 Weapon Failures 1 | . . . . . 1 Overload Shots . | . . . . . . Overflow Damage 38 | . . 2 25 11 . Projectiles 38 | . . 2 25 11 . Explosions . | . . . . . . Melee . | . . . . . . Knockbacks 7 | . . . 5 2 . Impact . | . . . . . . Kinetic 6 | . . . 4 2 . Secondary 1 | . . . 1 . . Self-Inflicted Damage 5 | . 5 . . . . Shots 1 | . 1 . . . . Rammed . | . . . . . . Targets Rammed . | . . . . . . Kicked . | . . . . . . Crushed . | . . . . . . Highest Temperature 430 | . 70 332 430 415 6 Average Temperature 130 | . 36 113 148 153 3 Received Heat Transfer 1602 | . 78 150 297 357 720 Effects 13 | . . . 8 5 . Shutdowns 4 | . . . 1 3 . Energy Bleed 4 | . . . 3 1 . Interference 4 | . . . 3 1 . Damage (minor) 1 | . . . 1 . . Siege Activations . | . . . . . . Martial Activations . | . . . . . . Shielding Activations . | . . . . . . Robots Disrupted . | . . . . . . Combat Hostiles . | . . . . . . Robots Corrupted . | . . . . . . Combat Hostiles . | . . . . . . Parts Fried . | . . . . . . Impact Corruptions . | . . . . . . Robots Melted 2 | . . . 1 1 . Combat Hostiles 2 | . . . 1 1 . Parts Melted 9 | . . . . 9 . Heat Transferred 4590 | . 100 777 975 2664 74 Parts Sabotaged . | . . . . . . Parts Stolen . | . . . . . . Parts Stripped . | . . . . . . Power Chain Reactions 3 | . 1 1 1 . . Alert | -11 -10 -9 -8 -7 -7 ------- Run | Yrd Mat Mat Mat Fac Low Maximum Alert Level 1 | . . 1 . . . Low Security (%) 98 | 100 100 93 100 100 . Level 1 1 | . . 6 . . . Level 2 . | . . . . . . Level 3 . | . . . . . . Level 4 . | . . . . . . Level 5 . | . . . . . . High Security . | . . . . . . Max Security . | . . . . . . Peak Influence 220 | . 40 220 107 188 . Initial 51 | . . 3 51 23 . Average 83 | . 14 132 49 99 . Influence Increases 1557 | . 90 510 439 488 30 Destroy 0b10 Robot/C 1060 | . 60 360 300 320 20 Destroy 0b10 Robot/NC 20 | . . . 15 5 . Destroy Leader 194 | . 10 50 64 60 10 Successful Hack 15 | . 5 5 . 5 . Destroy Structure 28 | . . 5 15 8 . Partial Spotted 15 | . . . 15 . . Lose Combat Pursuer 225 | . 15 90 30 90 . Influence Decreases 1557 | . 80 397 511 428 141 Entered New Map 149 | . . 7 72 28 42 Time Decay 1161 | . 80 310 334 360 77 Lost Part 182 | . . 80 40 40 22 Purge Threat 65 | . . . 65 . . Squads Dispatched 6 | . . 2 . 4 . Investigation . | . . . . . . Extermination 2 | . . . . 2 . Reinforcement 4 | . . 2 . 2 . Assault . | . . . . . . Garrison . | . . . . . . Intercept . | . . . . . . Searches Triggered . | . . . . . . Construction Impeded . | . . . . . . Haulers Reinforced . | . . . . . . Active Scanning Responses . | . . . . . . Cargo Convoy Interrupts . | . . . . . . Stealth | -11 -10 -9 -8 -7 -7 --------- Run | Yrd Mat Mat Mat Fac Low Distress Signals 5 | . 1 3 1 . . Communications Jammed . | . . . . . . Distress Signals . | . . . . . . Times Spotted 96 | . 7 35 20 29 5 Peak Tracking Total 7 | . 4 7 3 4 5 Tactical Retreats 9 | . 1 3 2 3 . Traps | -11 -10 -9 -8 -7 -7 ------- Run | Yrd Mat Mat Mat Fac Low Traps Triggered . | . . . . . . Indirectly . | . . . . . . Trap Hack Attempts . | . . . . . . Triggered . | . . . . . . Disarmed . | . . . . . . Reprogrammed . | . . . . . . Reused . | . . . . . . Traps Extracted . | . . . . . . Installed . | . . . . . . Triggered . | . . . . . . Machines | -11 -10 -9 -8 -7 -7 ---------- Run | Yrd Mat Mat Mat Fac Low Machines Disabled . | . . . . . . Max in Single Turn . | . . . . . . Machines Repaired . | . . . . . . Machines Dismantled . | . . . . . . Machines Sabotaged . | . . . . . . Overloaded Fab Kills . | . . . . . . Hacking | -11 -10 -9 -8 -7 -7 --------- Run | Yrd Mat Mat Mat Fac Low Machines Accessed 10 | . 2 4 3 1 . Terminals 9 | . 2 4 2 1 . Fabricators . | . . . . . . Repair Stations . | . . . . . . Recycling Units 1 | . . . 1 . . Scanalyzers . | . . . . . . Garrison Access . | . . . . . . Total Hacks 17 | . 5 6 5 1 . Successful 11 | . 1 4 5 1 . Failed 6 | . 4 2 . . . Catastrophic . | . . . . . . Database Lockouts . | . . . . . . Manual 3 | . . 1 2 . . Terminals 16 | . 5 6 4 1 . Fabricators . | . . . . . . Repair Stations . | . . . . . . Recycling Units 1 | . . . 1 . . Scanalyzers . | . . . . . . Garrison Access . | . . . . . . Terminal Hacks 10 | . 1 4 4 1 . Record 4 | . . 2 2 . . Open DSF 1 | . . . . 1 . Unreport Threat 1 | . . . 1 . . Dispatch Records 1 | . . 1 . . . Zone Layout 3 | . 1 1 1 . . Fabricator Hacks . | . . . . . . Repair Station Hacks . | . . . . . . Recycling Unit Hacks 1 | . . . 1 . . Report Inventory 1 | . . . 1 . . Scanalyzer . | . . . . . . Garrison Access Hacks . | . . . . . . Unauthorized Hacks . | . . . . . . Terminals . | . . . . . . Fabricators . | . . . . . . Repair Stations . | . . . . . . Recycling Units . | . . . . . . Scanalyzers . | . . . . . . Garrison Access . | . . . . . . Data Cores Recovered . | . . . . . . Used . | . . . . . . Hacking Detections 6 | . 2 2 2 . . Full Trace Events . | . . . . . . Feedback Events . | . . . . . . Feedback Blocked . | . . . . . . Robot Schematics Acquired . | . . . . . . Robots Built . | . . . . . . Authchips . | . . . . . . Time . | . . . . . . Total Robot Build Rating . | . . . . . . Part Schematics Acquired . | . . . . . . Parts Built . | . . . . . . Authchips . | . . . . . . Time . | . . . . . . Total Part Build Rating . | . . . . . . Part Studies Acquired . | . . . . . . Parts Repaired . | . . . . . . Time . | . . . . . . Parts Recycled . | . . . . . . Recycled Matter . | . . . . . . Retrieved Matter . | . . . . . . Retrieved Components . | . . . . . . Parts Scanalyzed . | . . . . . . Part Schematics Acquired . | . . . . . . Parts Damaged . | . . . . . . Bothacking | -11 -10 -9 -8 -7 -7 ------------ Run | Yrd Mat Mat Mat Fac Low Used RIF Installer . | . . . . . . Robots Hacked . | . . . . . . Non-combat . | . . . . . . Combat . | . . . . . . Robot Hacks Applied . | . . . . . . Relay Couplers Released . | . . . . . . Fabnet Peak Effective % . | . . . . . . Robots Rewired . | . . . . . . Allies Hacked . | . . . . . . Hacks Repelled . | . . . . . . Allies | -11 -10 -9 -8 -7 -7 -------- Run | Yrd Mat Mat Mat Fac Low Total Allies . | . . . . . . Largest Group . | . . . . . . Highest-Rated Group . | . . . . . . Highest-Rated Ally . | . . . . . . Total Orders . | . . . . . . Ally Attacks . | . . . . . . Total Damage . | . . . . . . Kills . | . . . . . . Allies Corrupted . | . . . . . . Allies Melted . | . . . . . . Intel | -11 -10 -9 -8 -7 -7 ------- Run | Yrd Mat Mat Mat Fac Low Active Infowar (turns) 2070 | . . 578 954 538 . Sensors 1467 | . . . 933 534 . Terrain 1836 | . . 448 910 478 . Structural 130 | . . 130 . . . Seismic 99 | . . . . 99 . Robot Analysis Total . | . . . . . . Derelict Logs Recovered . | . . . . . . Drone Launches . | . . . . . . Drone Recoveries . | . . . . . . Exploration | -11 -10 -9 -8 -7 -7 ------------- Run | Yrd Mat Mat Mat Fac Low Turns Passed 3826 | 38 240 775 1020 1034 719 Spaces Moved 2429 | 30 178 689 721 525 286 Core 6 | 3 . . . . 3 Treads 18 | . . . . 16 2 Legs . | . . . . . . Wheels 2405 | 27 178 689 721 509 281 Hover . | . . . . . . Flight . | . . . . . . Fastest Speed 50 | 50 100 80 86 120 215 Average Speed 128 | 96 100 87 109 155 243 Slowest Speed 1700 | 100 100 100 145 240 1700 Overloaded Moves . | . . . . . . Propulsion Burnouts . | . . . . . . Robots Hopped . | . . . . . . Potential Cave-ins . | . . . . . . Cave-ins Triggered . | . . . . . . Exploration Rate (%) 33 | 4 37 64 54 13 30 Regions Visited 5 Branch Regions 1 Pre-discovered Areas . | . . . . . . Known Exits Taken . | . . . . . . Unknown Exits Taken 5 | 1 1 1 1 1 . Scrap Searched . | . . . . . . Spaces Dug . | . . . . . . Terrain Destroyed 16 | . . 4 12 . . Melee . | . . . . . . Projectile 7 | . . . 7 . . AOE 9 | . . 4 5 . . Terrain Rammed . | . . . . . . Walls Destroyed . | . . . . . . Machines Disabled . | . . . . . . Actions | -11 -10 -9 -8 -7 -7 --------- Run | Yrd Mat Mat Mat Fac Low Total 2846 | 36 214 778 857 657 304 Wait 108 | . 13 16 34 42 3 Move 2424 | 29 177 688 720 524 286 Hop . | . . . . . . Pick Up 66 | 1 8 12 29 16 . Fast Attach 13 | 6 1 2 3 1 . Attach 33 | . . 10 8 9 6 Detach 1 | . . . 1 . . Swap 32 | . . 4 10 18 . Drop 24 | . 1 4 9 10 . Fire 143 | . 14 42 43 37 7 Melee . | . . . . . . Ram . | . . . . . . Kick . | . . . . . . Crush . | . . . . . . Escape Stasis . | . . . . . . Rewire 2 | . . . . . 2 Trap . | . . . . . . Miscellaneous . | . . . . . . Route ------- -11/Scrapyard -10/Materials -9/Materials (discovered 3 exits: *Mat x2 / [*Min]) -8/Materials -7/Factory (discovered 2 exits: [*Fac] / [*Low]) -7/Lower Caves History --------- Turn | Location | Event 11 | -11/Scrapyard | Discovered new exit (range 16) 39 | -11/Scrapyard | Entered Materials 261 | -10/Materials | Discovered new exit (range 13) 279 | -10/Materials | Entered another Materials area 279 | -9/Materials | Evolved 2 slots: Utility x1, Weapon x1 351 | -9/Materials | Discovered new exit (range 12) 445 | -9/Materials | Lost 3 parts (2u1w) 534 | -9/Materials | Destroyed 7 combat bots 538 | -9/Materials | Lost 3 parts (1p2n) 599 | -9/Materials | Discovered new exit (range 16) 839 | -9/Materials | Discovered new exit (range 12) 1054 | -9/Materials | Entered another Materials area 1054 | -8/Materials | Evolved 2 slots: Propulsion x1, Utility x1 1367 | -8/Materials | Build established: Scavenger-Skirmisher 2041 | -8/Materials | Discovered new exit (range 8) 2074 | -8/Materials | Entered Factory 2074 | -7/Factory | Evolved 2 slots: Propulsion x1, Utility x1 2137 | -7/Factory | Discovered new exit (range 12) 2926 | -7/Factory | Discovered new exit (range 4) 3090 | -7/Factory | Build established: Scavenger-Gunner 3108 | -7/Factory | Entered Lower Caves 3286 | -7/Lower Caves | Spotted B-75 Beast 3783 | -7/Lower Caves | Core integrity fell below 50% 3799 | -7/Lower Caves | Core integrity fell below 20% 3827 | -7/Lower Caves | Destroyed by G-47 Trooper with Particle Gun Last Messages --------------- 03777_ Lgt. Nuclear Core destroyed. 03777_ System corrupted by crushing effect (+2). 03778_ System corrupted: Matter fused (-6). 03779_ Lgt. Treads destroyed. 03781_ B-48 Gladiator destroyed. 03783_ Acquired 33 matter. 03785_ Mace fries itself beyond repair. 03787_ Adv. Assault Cannon destroyed. 03790_ Imp. Light Armor Plating fries itself beyond repair. 03790_ G-47 Trooper destroyed. 03792_ Imp. Heat Sink destroyed. 03793_ Knocked back. 03796_ Critical hit (Burn: +37). 03797_ System corrupted: Component data lost. 03797_ Lgt. Nuclear Core fries itself beyond repair. 03799_ Imp. Heat Sink fries itself beyond repair. 03799_ Imp. Light Armor Plating destroyed. 03802_ Aluminum Leg fries itself beyond repair. 03815_ Scythe destroyed. 03821_ Reactive Plating destroyed. Map ----- +----------------------------------------------------+ | ?????????????????????????????????????????????????? | | ?????????????????????????????????????????????????? | | ?????????????????????????????????????????????????? | | ?????????????????????????????????????????????????? | | ?????????????????????????????????????????????????? | | ?????????????????????????????????????????????????? | | ?????????????????????????????????????????????????? | | ?????????????????????????????????????????????????? | | ?????????????????????????????????????????????????? | | ?????????????????????????????????????????????????? | | ?????????????????????????????????????????????????? | | ???????? ??????????????????????????????????????? | | ?????? #?????????????????????????????????????? | | ?????? #????????????????????????????????????? | | ????? ????????????????????????????????????? | | ?????# ???????????????????????????????????? | | ?????? ???????????????????????????????????? | | ???????# ?????????????????????###??????????? | | ????????# ???????????????????##""#??????????? | | ?????????# ?????###?????????## "???????????? | | ??????????# ????## #?????????# #????????????? | | ???????????? ??## #??###?#??# ###??????????## | | ??????????????# ### #?#;;# ##### ####?????### | | ??????????????# ### ;%; ## a ####?## | | ??????????????# g %% #?# | | ??????????????# @% #### | | ??????? g% #;;;; ### | | ??????# ### ### ## ## | | ??????# ### ##?####??# ### | | ?????# ????## ##?????????## ##?### | | ?????#???????## ####??###??????## #####????# | | ????????????? ?????? ??????### ##???????? | | ????????????# ?????? %????????# ##??????? | | ??????????? ??????? %????????# #??????? | | ??????????# # ??????# ????????### ##??????? | | ??????????#?# ??????# ?????????# #???????? | | ???????????? ?????# ##???????## #???????? | | ???????????? ### #???## ######## %##??????? | | ??????????????? ??# % % #??????? | | ????????????????? ?#### %% ##??????? | | ??????????????????# ???## % ### ##???????? | | ??????????????????? #???## #########?????#### | | ?????????????????????# #### # %#????## # | | ?????????????????????# # %% #???## | | ???????????????????### % ### %##### | | ????????????????#### ##### % ######## ## | | ????????????????# #???## ##???## | | ????????????????# ##???## #???## | | ?????????????????# ###??# #?### """ | | ???????????######## ##?# ### "" ## | +----------------------------------------------------+ Best States ------------- Heat Dissipation 62 Energy Generation 14 Energy Capacity 265 Matter Stores 400 Matter Capacity 400 Sight Range 16 Robot Scan Range 15 Terrain Scan Range 16 Terrain Scan Density 85 Base Temperature (-) 100 Armor Coverage 300 Resistance: KI 20 Propulsion Shielding 33 Evasion (%) 44 Recoil Reduction 4 Energy Filtering 30 Item Schematics ----------------- None Robot Schematics ------------------ None Fabricated ------------ Nothing Repaired ---------- Nothing Studied --------- None Alien Tech Used ----------------- None Achievements -------------- Everything Is Under Control Challenges ------------ None Game ------ Seed AerolevTeslaAirjet Manual? 0 Play Time 01:38:42 Cumulative 17.5 hours Start 2026.03.22 @ 11:20:06 End 2026.05.02 @ 21:18:37 Sessions 21 Manual Loads 0 Difficulty Rogue Special Mode None Game No. 15 Rogue 15 Adventurer 0 Explorer 0 Win Type - Total 0 Types 0/0/0/0/0/0/0/0/0/0 Lore% 15 Gallery% 15 Achievement% 13 Wizard Run 0 Options --------- Layout 0 ASCII 1 Keyboard 1 Movement Numpad Keybinds 0 Fullscreen 1 Font 16/SmallcapsGlow Map View 75x55 Zoom Use 0% Tactical HUD 1 Map Filters NONE Filters NONE Steam 1 RUN: ef56e175-7a2c-4964-83a6-36cad4da64a0